fUSD/lending_fUSD_20260408
["ID","MTS","AMOUNT","RATE_DAILY","PERIOD"]
[420081263,1775658645789,-500.0,0.00015724,2]
[420081264,1775658645801,-151.0,0.00015724,2]
[420081265,1775658645812,-552.13551218,0.0001574,2]
[420081266,1775658645822,-2023.0,0.00015741,2]
[420081267,1775658645833,-2023.0,0.00015748,2]
[420081268,1775658645844,-350.0,0.00015751,2]
[420081269,1775658645855,-529.51,0.00015753,2]
[420081270,1775658645866,-1573.0,0.00015758,2]
[420081271,1775658645876,-350.0,0.00015763,2]
[420081272,1775658645887,-1000.0,0.00015774,2]
[420081273,1775658645898,-150.0,0.00015792,2]
[420081274,1775658645908,-414.0,0.00015803,2]
[420081275,1775658645919,-2023.0,0.00015811,2]
[420081276,1775658645929,-354.76876947,0.00015814,2]
[420081277,1775658645940,-457.0765117,0.00015814,2]
[420081278,1775658645950,-150.0,0.0001583,2]
[420081279,1775658645962,-2023.0,0.00015832,2]
[420081280,1775658645973,-97438.76421008,0.0001584,2]
[420081281,1775658645984,-2000.0,0.0001584,2]
[420081282,1775658645994,-2000.0,0.0001584,2]
[420081283,1775658646004,-2000.0,0.0001585,2]
[420081284,1775658646015,-1000.0,0.00015855,2]
[420081285,1775658646026,-2023.0,0.00015859,2]
[420081286,1775658646036,-163.8001,0.0001586,2]
[420081287,1775658646046,-2023.0,0.0001586,2]
[420081288,1775658646056,-163.8001,0.0001587,2]
[420081289,1775658646067,-200.0,0.00015871,2]
[420081290,1775658646079,-500.0,0.00015872,2]
[420081291,1775658646092,-500.0,0.00015872,2]
[420081293,1775658646103,-200.0,0.00015872,2]
[420081294,1775658646113,-500.0,0.0001589,2]
[420081295,1775658646125,-500.0,0.0001589,2]
[420081296,1775658646136,-500.0,0.0001589,2]
[420081297,1775658646147,-194.91667222,0.0001589,2]
[420081298,1775658646158,-2023.0,0.00015891,2]
[420081299,1775658646169,-25000.0,0.00015891,3]
[420081300,1775658646179,-5671.11113494,0.00015893,2]
[420081301,1775658646191,-7993.35942921,0.00015893,2]
[420081302,1775658646202,-25000.0,0.000159,3]
[420081303,1775658646213,-249.22320732,0.000159,2]
[420081304,1775658646224,-184.01842302,0.000159,2]
[420081305,1775658646234,-1791.31,0.000159,2]
[420081306,1775658646244,-2000.0,0.000159,2]
[420081307,1775658646256,-1000.0,0.00015917,2]
[420081308,1775658646267,-350.0,0.00015925,2]
[420081309,1775658646278,-1000.0,0.00015938,2]
[420081310,1775658646290,-250.0,0.0001594,2]
[420081311,1775658646301,-2023.0,0.00015941,2]
[420081312,1775658646313,-1000.0,0.00015942,2]
[420081313,1775658646325,-2023.0,0.00015959,2]
[420081314,1775658646336,-150.0,0.00015966,2]
[420081315,1775658646350,-233.84757239,0.00015973,2]
[420081316,1775658646361,-501.46029237,0.00015973,2]
[420081317,1775658646372,-162.60419222,0.00015973,2]
[420081318,1775658646384,-500.0,0.00015973,2]
[420081319,1775658646396,-500.0,0.00015973,2]
[420081320,1775658646407,-500.0,0.00015973,2]
[420081321,1775658646417,-500.8742817,0.00015973,2]
[420081322,1775658646427,-500.0,0.00015973,2]
[420081323,1775658646439,-500.0,0.00015973,2]
[420081324,1775658646450,-502.08343248,0.00015973,2]
[420081325,1775658646461,-500.0,0.00015973,2]
[420081326,1775658646471,-500.0,0.00015973,2]
[420081327,1775658646483,-500.0,0.00015973,2]
[420081328,1775658646494,-500.0,0.00015973,2]
[420081329,1775658646505,-500.0,0.00015973,2]
[420081330,1775658646515,-500.0,0.00015973,2]
[420081331,1775658646525,-500.0,0.00015973,2]
[420081332,1775658646536,-500.0,0.00015973,2]
[420081333,1775658646547,-500.0,0.00015973,2]
[420081334,1775658646557,-500.0,0.00015973,2]
[420081335,1775658646567,-414.0,0.00015973,2]
[420081336,1775658646578,-1000.0,0.00015975,2]
[420081337,1775658646589,-1000.0,0.00015983,2]
[420081338,1775658646600,-1140648.0594002,0.00015993,2]
[420081339,1775658646611,-4959.453405,0.00015993,2]
[420081340,1775658646621,-369.8002059,0.00015993,2]
[420081341,1775658646632,-13373.6995811,0.00015993,2]
[420081342,1775658646642,-229434.2879003,0.00015993,2]
[420081343,1775658646652,-156.152854,0.00015997,2]
[420081344,1775658646663,-666.0,0.00015999,2]
[420081345,1775658646674,-666.0,0.00015999,2]
[420081346,1775658646685,-214.165588,0.00015999,2]
[420081347,1775658646695,-1031.0,0.00016,5]
[420081348,1775658646706,-3952705.33423197,0.00016,2]
[420081349,1775658646716,-313272.04112251,0.00016,2]
[420081360,1775658648627,-465.777714,0.00013425,2]
[420081361,1775658648637,-426.666623,0.00014096,7]
[420081362,1775658648646,-221.866644,0.00015438,7]
[420081363,1775658648656,-539.78873501,0.00016,2]
[420081364,1775658649147,-1372.47485402,0.00016,2]
[420081365,1775658649214,-8566.77403205,0.00016,2]
[420081366,1775658649567,-182.8797037,0.0001,2]
[420081367,1775658649577,-823.3792817,0.00015893,2]
[420081368,1775658649588,-59.53279692,0.00015893,2]
[420081369,1775658649599,-182.8797037,0.00015983,2]
[420081370,1775658649610,-182.8797037,0.0001599,2]
[420081371,1775658649619,-7906.47741347,0.00016,2]
[420081372,1775658721281,156.0,9.124e-05,2]
[420081373,1775658781201,300.0,9.124e-05,2]
[420081374,1775658781751,150.0,9.124e-05,2]
[420081375,1775658815668,1381.46684249,9.124e-05,2]
[420081376,1775658819139,271.95262305,9.124e-05,2]
[420081377,1775658819173,559.88433407,9.124e-05,2]
[420081378,1775658819211,241.16780334,9.124e-05,2]
[420081379,1775658819245,191.14123417,9.124e-05,2]
[420081380,1775658821312,500.0,9.124e-05,2]
[420081381,1775658821449,500.0,9.124e-05,2]
[420081382,1775658821539,500.0,9.124e-05,2]
[420081383,1775658821707,500.0,9.124e-05,2]
[420081384,1775658821750,500.0,9.124e-05,2]
[420081385,1775658821821,250.0,9.124e-05,2]
[420081386,1775658842843,1083.0,9.124e-05,2]
[420081387,1775658901433,1200.0,9.124e-05,2]
[420081388,1775658908312,1715.39716288,9.115e-05,2]
[420081389,1775658908337,3127.19718348,9.115e-05,2]
[420081391,1775658961652,150.0,9.124e-05,2]
[420081392,1775658965457,518.81746234,9.124e-05,2]
[420081393,1775658976535,500.0,9.124e-05,2]
[420081394,1775658976576,500.0,9.124e-05,2]
[420081395,1775658976615,500.0,9.124e-05,2]
[420081396,1775658976671,500.0,9.124e-05,2]
[420081397,1775658976716,500.0,9.124e-05,2]
[420081398,1775658976755,500.0,9.124e-05,2]
[420081399,1775658976795,500.0,9.124e-05,2]
[420081400,1775658976852,500.0,9.124e-05,2]
[420081401,1775658976896,500.0,9.124e-05,2]
[420081402,1775658976939,500.0,9.124e-05,2]
[420081403,1775658976982,500.0,9.124e-05,2]
[420081404,1775658977028,500.0,9.124e-05,2]
[420081405,1775658977069,203.99535418,9.124e-05,2]
[420081406,1775658977101,296.00464582,9.124e-05,2]
[420081407,1775658977143,500.0,9.124e-05,2]
[420081408,1775658977184,500.0,9.124e-05,2]
[420081409,1775658977249,500.0,9.124e-05,2]
[420081410,1775658977291,500.0,9.124e-05,2]
[420081411,1775658977337,500.0,9.124e-05,2]
[420081412,1775658977383,500.0,9.124e-05,2]
[420081413,1775658977434,500.0,9.124e-05,2]
[420081414,1775658978753,500.0,9.124e-05,2]
[420081415,1775658978800,500.0,9.124e-05,2]
[420081416,1775658978839,500.0,9.124e-05,2]
[420081417,1775658979342,500.0,9.124e-05,2]
[420081418,1775658979379,500.0,9.124e-05,2]
[420081419,1775658979431,500.0,9.124e-05,2]
[420081420,1775658979468,500.0,9.124e-05,2]
[420081421,1775658979507,500.0,9.124e-05,2]
[420081422,1775658979544,500.0,9.124e-05,2]
[420081423,1775658979593,500.0,9.124e-05,2]
[420081424,1775658979634,519.80122546,9.124e-05,2]
[420081425,1775658979678,500.0,9.124e-05,2]
[420081426,1775658979716,184.20412872,9.124e-05,2]
[420081427,1775658979747,315.79587128,9.124e-05,2]
[420081428,1775658979788,500.0,9.124e-05,2]
[420081429,1775658985617,500.0,9.124e-05,2]
[420081430,1775658987244,500.0,9.124e-05,2]
[420081431,1775658987318,500.0,9.124e-05,2]
[420081432,1775658987428,500.0,9.124e-05,2]
[420081433,1775658987468,500.0,9.124e-05,2]
[420081434,1775658987508,500.0,9.124e-05,2]
[420081435,1775659006733,391.91903385,9.124e-05,2]
[420081436,1775659017865,500.0,9.124e-05,2]
[420081437,1775659051179,190.36683613,9.124e-05,2]
[420081438,1775659081380,300.0,9.124e-05,2]
[420081439,1775659135674,2500.0,9.025e-05,2]
[420081440,1775659141195,300.0,9.124e-05,2]
[420081441,1775659141648,150.0,9.124e-05,2]
[420081442,1775659201220,300.0,9.124e-05,2]
[420081443,1775659201263,1200.0,9.124e-05,2]
[420081444,1775659207623,154.0,9.124e-05,3]
[420081445,1775659261222,300.0,9.124e-05,2]
[420081446,1775659288805,867.72413002,8.942e-05,2]
[420081447,1775659288837,3032.12586998,8.942e-05,2]
[420081448,1775659288950,237.681,8.942e-05,2]
[420081449,1775659294745,2500.0,9.025e-05,2]
[420081450,1775659305627,500.0,9.124e-05,2]
[420081451,1775659305676,500.0,9.124e-05,2]
[420081452,1775659305728,500.0,9.124e-05,2]
[420081453,1775659320557,500.0,9.124e-05,2]
[420081454,1775659321691,150.0,9.124e-05,2]
[420081455,1775659322437,500.0,9.124e-05,2]
[420081456,1775659332752,500.0,9.124e-05,2]
[420081457,1775659332803,294.35758631,9.124e-05,2]
[420081458,1775659343660,500.0,9.124e-05,2]
[420081459,1775659343704,257.83482842,9.124e-05,2]
[420081460,1775659343757,28.01071529,9.124e-05,2]
[420081461,1775659343780,471.98928471,9.124e-05,2]
[420081462,1775659352435,500.0,9.124e-05,2]
[420081463,1775659352491,500.0,9.124e-05,2]
[420081464,1775659352533,500.0,9.124e-05,2]
[420081465,1775659355109,500.0,9.124e-05,2]
[420081466,1775659368952,644.66933687,9.124e-05,2]
[420081467,1775659369005,500.0,9.124e-05,2]
[420081468,1775659369068,500.0,9.124e-05,2]
[420081469,1775659394872,500.0,9.124e-05,2]
[420081470,1775659395185,500.0,9.124e-05,2]
[420081471,1775659405128,153.20067224,9.124e-05,2]
[420081472,1775659405201,500.0,9.124e-05,2]
[420081473,1775659413440,500.0,9.124e-05,2]
[420081474,1775659413472,643.88484333,9.124e-05,2]
[420081475,1775659414303,500.0,9.124e-05,2]
[420081476,1775659414357,180.9569223,9.124e-05,2]
[420081477,1775659457521,2405.30894055,9.025e-05,2]
[420081478,1775659457548,94.69105945,9.025e-05,2]
[420081479,1775659501278,1200.0,9.124e-05,2]
[420081480,1775659501583,300.0,9.124e-05,2]
[420081481,1775659502034,150.0,9.124e-05,2]
[420081482,1775659512116,154.0,9.124e-05,3]
[420081483,1775659613988,-25000.0,9.125e-05,2]
[420081484,1775659614816,-25000.0,9.125e-05,2]
[420081485,1775659615487,-25000.0,9.125e-05,2]
[420081486,1775659616157,-25000.0,9.125e-05,2]
[420081487,1775659616800,-25000.0,9.125e-05,2]
[420081488,1775659617198,-25000.0,9.125e-05,2]
[420081489,1775659617879,-25000.0,9.125e-05,2]
[420081490,1775659618540,-25000.0,9.125e-05,2]
[420081491,1775659621617,300.0,9.124e-05,2]
[420081492,1775659621866,2425.2951,9.025e-05,2]
[420081493,1775659628069,160.0,9.125e-05,3]
[420081494,1775659681925,150.0,9.124e-05,2]
[420081495,1775659686860,462.0,9.125e-05,3]
[420081496,1775659693254,160.0,9.125e-05,3]
[420081497,1775659698127,1000.0,9.124e-05,2]
[420081498,1775659720374,15923.16310307,9.833e-05,4]
[420081500,1775659740634,150.48,4.747e-05,2]
[420081501,1775659740853,150.48,5.142e-05,2]
[420081502,1775659741066,150.48,5.538e-05,2]
[420081503,1775659741265,150.48,5.934e-05,2]
[420081504,1775659741521,150.48,6.329e-05,2]
[420081505,1775659741947,150.48,6.725e-05,2]
[420081506,1775659742169,150.48,7.12e-05,2]
[420081507,1775659742390,150.48,7.516e-05,2]
[420081508,1775659742615,150.48,7.911e-05,2]
[420081509,1775659743100,150.48,8.307e-05,2]
[420081510,1775659743500,150.48,8.702e-05,2]
[420081511,1775659743703,150.48,9.098e-05,2]
[420081512,1775659770687,300.0,9.124e-05,2]
[420081513,1775659801199,1200.0,9.124e-05,2]
[420081514,1775659806069,155.0,9.124e-05,3]
[420081515,1775659811261,439.0,9.124e-05,3]
[420081516,1775659826412,1074.26384055,9.025e-05,2]
[420081517,1775659826441,10000.01,9.025e-05,2]
[420081518,1775659826469,10000.01,9.025e-05,2]
[420081519,1775659826497,10000.01,9.025e-05,2]
[420081520,1775659826525,10000.01,9.025e-05,2]
[420081521,1775659826552,10000.01,9.025e-05,2]
[420081522,1775659826580,10000.01,9.025e-05,2]
[420081523,1775659826608,10000.01,9.025e-05,2]
[420081524,1775659826638,10000.01,9.025e-05,2]
[420081525,1775659826666,10000.01,9.025e-05,2]
[420081529,1775659834815,-383.22791174,9.025e-05,2]
[420081530,1775659834829,-355.175,9.025e-05,2]
[420081531,1775659834841,-382659.78270915,9.025e-05,2]
[420081532,1775659834853,-128596.83698152,9.025e-05,2]
[420081533,1775659834866,-120142.09395646,9.025e-05,2]
[420081534,1775659834878,-4805.67354696,9.025e-05,2]
[420081535,1775659834890,-815.70361234,9.025e-05,2]
[420081536,1775659834902,-660.3,9.025e-05,2]
[420081537,1775659834915,-711.11,9.025e-05,2]
[420081538,1775659834927,-1795.3333,9.025e-05,2]
[420081539,1775659834939,-265.84703492,9.025e-05,2]
[420081540,1775659834951,-311.65224731,9.025e-05,2]
[420081545,1775659838457,-1850.11731,9.025e-05,2]
[420081547,1775659838469,-1087.68025972,9.025e-05,2]
[420081549,1775659838481,-593.87332866,9.025e-05,2]
[420081552,1775659838493,-1722.85209574,9.025e-05,2]
[420081554,1775659838504,-2412.04656215,9.025e-05,2]
[420081556,1775659838516,-3829.99795037,9.025e-05,2]
[420081557,1775659838529,-7755.5702088,9.025e-05,2]
[420081558,1775659838540,-3763.29294488,9.025e-05,2]
[420081559,1775659838552,-6859.99277437,9.025e-05,2]
[420081560,1775659838564,-14468.54873405,9.025e-05,2]
[420081561,1775659838576,-70999.99999995,9.025e-05,2]
[420081562,1775659838821,-380.24418438,9.025e-05,2]
[420081563,1775659838833,-580.29201335,9.025e-05,2]
[420081564,1775659838845,-252.9257169,9.025e-05,2]
[420081565,1775659838857,-396.42274978,9.025e-05,2]
[420081566,1775659838869,-1212.83249732,9.025e-05,2]
[420081695,1775659841081,-1909.33413206,9.025e-05,2]
[420081696,1775659841092,-346.75869046,9.025e-05,2]
[420081697,1775659841104,-1054.83329262,9.025e-05,2]
[420081698,1775659841116,-645945.29441349,9.025e-05,2]
[420081699,1775659841127,-28674.5437,9.125e-05,2]
[420081700,1775659841137,-2500000.0,9.125e-05,2]
[420081701,1775659841147,-250.0,9.126e-05,2]
[420081702,1775659841159,-5000.0,9.128e-05,2]
[420081703,1775659841169,-7084.17138578,9.128e-05,2]
[420081704,1775659841179,-250.0,9.144e-05,2]
[420081705,1775659841189,-4660.19720196,9.339e-05,2]
[420081706,1775659841200,-598.86,9.445e-05,2]
[420081707,1775659841210,-800.0,9.448e-05,2]
[420081708,1775659841220,-397.73,9.448e-05,2]
[420081709,1775659841231,-598.86,9.451e-05,2]
[420081710,1775659841242,-200.0,9.459e-05,2]
[420081711,1775659841252,-150.48,9.494e-05,2]
[420081712,1775659841263,-150.0,9.5e-05,2]
[420081713,1775659841273,-528.4,9.505e-05,2]
[420081714,1775659841283,-375.0,9.587e-05,2]
[420081715,1775659841294,-1006.0,9.606e-05,2]
[420081716,1775659841304,-15652.05,9.725e-05,2]
[420081717,1775659841315,-595.0,9.757e-05,2]
[420081718,1775659841325,-1486.0,9.777e-05,2]
[420081719,1775659841336,-1500.0,9.784e-05,2]
[420081720,1775659841347,-220.0,9.796e-05,2]
[420081721,1775659841357,-500.0,9.801e-05,2]
[420081722,1775659841367,-1620.0,9.816e-05,2]
[420081723,1775659841377,-1050.0,9.835e-05,2]
[420081724,1775659841387,-150.0,9.855e-05,2]
[420081725,1775659841398,-5961.35,9.855e-05,2]
[420081726,1775659841408,-999.99,9.855e-05,2]
[420081727,1775659841418,-9999.99,9.855e-05,2]
[420081728,1775659841429,-150.99,9.925e-05,2]
[420081729,1775659841439,-9999.99,9.925e-05,2]
[420081730,1775659841449,-500.0,9.925e-05,2]
[420081731,1775659841458,-299.99,9.928e-05,2]
[420081732,1775659841468,-150.99,9.928e-05,2]
[420081733,1775659841478,-500.0,0.0001,2]
[420081734,1775659841488,-924.63,0.0001,2]
[420081735,1775659841498,-49359.0,0.0001,2]
[420081736,1775659841509,-151.0,0.0001,2]
[420081737,1775659841519,-151.0,0.0001,2]
[420081738,1775659841530,-151.0,0.0001,2]
[420081739,1775659841540,-151.0,0.0001,2]
[420081740,1775659841551,-200.0,0.0001,2]
[420081741,1775659841561,-151.0,0.0001,2]
[420081742,1775659841572,-151.0,0.0001,2]
[420081743,1775659841583,-500.0,0.0001,2]
[420081744,1775659841593,-151.0,0.0001,2]
[420081745,1775659841604,-500.0,0.0001,2]
[420081746,1775659841614,-151.0,0.0001,2]
[420081747,1775659841627,-500.0,0.0001,2]
[420081748,1775659841638,-151.0,0.0001,2]
[420081749,1775659841649,-500.0,0.0001,2]
[420081750,1775659841660,-151.0,0.0001,2]
[420081751,1775659841671,-500.0,0.0001,2]
[420081752,1775659841681,-151.0,0.0001,2]
[420081753,1775659841691,-500.0,0.0001,2]
[420081754,1775659841702,-151.0,0.0001,2]
[420081755,1775659841712,-500.0,0.0001,2]
[420081756,1775659841722,-151.0,0.0001,2]
[420081757,1775659841732,-500.0,0.0001,2]
[420081758,1775659841742,-151.0,0.0001,2]
[420081759,1775659841752,-500.0,0.0001,2]
[420081760,1775659841763,-151.0,0.0001,2]
[420081761,1775659841773,-500.0,0.0001,2]
[420081762,1775659841784,-500.0,0.0001,2]
[420081763,1775659841795,-500.0,0.0001,2]
[420081764,1775659841805,-500.0,0.0001,2]
[420081765,1775659841816,-500.0,0.0001,2]
[420081766,1775659841826,-500.0,0.0001,2]
[420081767,1775659841849,-500.0,0.0001,2]
[420081768,1775659841862,-500.0,0.0001,2]
[420081769,1775659841876,-500.0,0.0001,2]
[420081770,1775659841887,-500.0,0.0001,2]
[420081771,1775659841899,-500.0,0.0001,2]
[420081772,1775659841911,-500.0,0.0001,2]
[420081773,1775659841922,-500.0,0.0001,2]
[420081774,1775659841932,-151.0,0.0001,2]
[420081775,1775659841942,-500.0,0.0001,2]
[420081776,1775659841952,-151.0,0.0001,2]
[420081777,1775659841964,-500.0,0.0001,2]
[420081778,1775659841974,-151.0,0.0001,2]
[420081780,1775659841985,-500.0,0.0001,2]
[420081782,1775659841996,-151.0,0.0001,2]
[420081783,1775659842006,-500.0,0.0001,2]
[420081784,1775659842016,-151.0,0.0001,2]
[420081785,1775659842026,-500.0,0.0001,2]
[420081786,1775659842037,-151.0,0.0001,2]
[420081787,1775659842047,-500.0,0.0001,2]
[420081788,1775659842058,-151.0,0.0001,2]
[420081789,1775659842068,-151.0,0.0001,2]
[420081790,1775659842079,-500.0,0.0001,2]
[420081791,1775659842089,-151.0,0.0001,2]
[420081792,1775659842101,-500.0,0.0001,2]
[420081793,1775659842112,-151.0,0.0001,2]
[420081794,1775659842126,-151.0,0.0001,2]
[420081795,1775659842138,-151.0,0.0001,2]
[420081796,1775659842149,-155.45941456,0.0001,2]
[420081797,1775659842160,-1199.20597015,0.0001,2]
[420081798,1775659842172,-152.64494361,0.0001,2]
[420081799,1775659842183,-249.22320734,0.0001,2]
[420081800,1775659842193,-255.0,0.00010036,2]
[420081801,1775659842203,-1680.0,0.00010036,2]
[420081802,1775659842214,-5000.0,0.00010037,2]
[420081803,1775659842225,-193.0,0.00010037,2]
[420081804,1775659842235,-250.0,0.00010037,2]
[420081805,1775659842245,-500.0,0.00010274,2]
[420081806,1775659842255,-924.63,0.00010274,2]
[420081807,1775659842265,-5533.0,0.000103,3]
[420081808,1775659842275,-151.0,0.00010409,2]
[420081809,1775659842285,-151.0,0.00010413,2]
[420081810,1775659842296,-500.0,0.00010548,2]
[420081811,1775659842307,-924.63,0.00010548,2]
[420081812,1775659842317,-200.0,0.00010548,2]
[420081813,1775659842327,-1243.57659104,0.00010548,2]
[420081814,1775659842338,-166.66,0.00010658,2]
[420081815,1775659842349,-500.0,0.00010822,2]
[420081816,1775659842359,-924.63,0.00010822,2]
[420081817,1775659842375,-151.0,0.00010836,2]
[420081818,1775659842385,-184.0,0.00010855,2]
[420081819,1775659842396,-172.5998,0.000109,2]
[420081820,1775659842407,-500.0,0.00010959,2]
[420081821,1775659842418,-150.0,0.00010959,2]
[420081822,1775659842429,-166.66,0.0001101,2]
[420081823,1775659842442,-433.0,0.0001104,2]
[420081824,1775659842453,-2351.0,0.0001104,2]
[420081825,1775659842463,-336.46720663,0.00011096,2]
[420081826,1775659842474,-924.63,0.00011096,2]
[420081827,1775659842485,-200.0,0.00011096,2]
[420081828,1775659842496,-332.61611279,0.00011096,2]
[420081829,1775659842506,-9577.4290793,0.00011099,2]
[420081830,1775659842516,-9577.4290793,0.00011099,2]
[420081831,1775659842526,-9577.4290793,0.00011099,2]
[420081832,1775659842536,-9136.75136789,0.00011099,2]
[420081833,1775659842546,-9136.75136784,0.00011099,2]
[420081834,1775659842556,-9136.75136784,0.00011099,2]
[420081835,1775659842567,-439.0,0.00011102,3]
[420081836,1775659842577,-10940.20448391,0.000113,2]
[420081837,1775659842587,-9136.75136784,0.00011317,2]
[420081838,1775659842598,-9577.4290793,0.00011317,2]
[420081839,1775659842608,-155.0,0.00011334,3]
[420081840,1775659842619,-1527.0,0.00011353,2]
[420081841,1775659842630,-301.85770587,0.00011353,2]
[420081842,1775659842641,-152.0,0.00011353,2]
[420081843,1775659842652,-1527.0,0.00011353,2]
[420081844,1775659842663,-152.0,0.00011353,2]
[420081845,1775659842674,-152.0,0.00011353,2]
[420081846,1775659842684,-1527.0,0.00011353,2]
[420081847,1775659842694,-1527.0,0.00011353,2]
[420081848,1775659842705,-1527.0,0.00011353,2]
[420081849,1775659842716,-1527.0,0.00011353,2]
[420081850,1775659842726,-1527.0,0.00011353,2]
[420081851,1775659842738,-1527.0,0.00011353,2]
[420081852,1775659842749,-1527.0,0.00011353,2]
[420081853,1775659842760,-152.0,0.00011353,2]
[420081854,1775659842772,-1527.0,0.00011353,2]
[420081855,1775659842783,-152.0,0.00011353,2]
[420081856,1775659842795,-1527.0,0.00011353,2]
[420081857,1775659842806,-166.66,0.00011362,2]
[420081858,1775659842817,-924.63,0.0001137,2]
[420081859,1775659842828,-490.0,0.00011426,2]
[420081860,1775659842839,-4724.14,0.00011507,2]
[420081861,1775659842850,-924.63,0.00011644,2]
[420081862,1775659842861,-200.0,0.00011644,2]
[420081863,1775659842873,-166.66,0.00011713,2]
[420081864,1775659842883,-924.67654162,0.00011918,2]
[420081865,1775659842895,-70702.03050694,0.00012,7]
[420081866,1775659842906,-166.66,0.00012065,2]
[420081867,1775659842917,-9136.75136784,0.00012081,2]
[420081868,1775659842927,-9577.4290793,0.00012081,2]
[420081869,1775659842936,-9999.99,0.00012087,2]
[420081870,1775659842946,-29999.99,0.00012087,2]
[420081871,1775659842956,-12753.37,0.00012087,2]
[420081872,1775659842967,-736.0,0.00012144,2]
[420081873,1775659842978,-3292.0,0.00012144,2]
[420081874,1775659842988,-200.0,0.00012192,2]
[420081875,1775659843000,-250.0,0.00012197,2]
[420081876,1775659843011,-198.6047,0.000123,2]
[420081877,1775659843022,-150.0,0.00012319,2]
[420081878,1775659843033,-150.0,0.00012319,2]
[420081879,1775659843044,-166.66,0.00012417,2]
[420081880,1775659843056,-249.22320732,0.00012463,2]
[420081891,1775659843580,-7084.17138578,0.00012464,2]
[420081892,1775659843592,-1000.0,0.00012561,2]
[420081893,1775659843603,-200.0,0.0001274,2]
[420081894,1775659843614,-9136.75136784,0.00012844,2]
[420081895,1775659843629,-9577.4290793,0.00012844,2]
[420081896,1775659843641,-250.0,0.00013,2]
[420081897,1775659843651,-439.0,0.0001308,3]
[420081898,1775659843662,-2210.82,0.00013237,2]
[420081899,1775659843673,-2835.5,0.00013357,2]
[420081900,1775659843683,-2835.5,0.00013357,2]
[420081901,1775659843694,-2835.5,0.00013357,2]
[420081902,1775659843705,-2835.5,0.00013357,2]
[420081903,1775659843715,-2835.5,0.00013357,2]
[420081904,1775659843725,-1252.0,0.00013357,2]
[420081905,1775659843736,-4609.0,0.00013358,2]
[420081906,1775659843747,-3240.0,0.00013425,2]
[420081907,1775659843757,-155.0,0.00013545,3]
[420081908,1775659843768,-228.5276,0.000136,2]
[420081909,1775659843778,-9136.75136784,0.00013608,2]
[420081910,1775659843789,-9577.4290793,0.00013608,2]
[420081911,1775659843800,-500.0,0.00013698,2]
[420081912,1775659843811,-150.0,0.00013699,2]
[420081913,1775659843822,-159.74,0.00013699,2]
[420081914,1775659843833,-7859.5132044,0.00014117,2]
[420081915,1775659843844,-155.32006584,0.00014125,2]
[420081916,1775659843855,-1068.5,0.00014224,2]
[420081917,1775659843865,-9136.75136784,0.00014372,2]
[420081918,1775659843876,-9577.4290793,0.00014372,2]
[420081919,1775659843887,-160.0,0.000144,2]
[420081920,1775659843898,-216.162438,0.000144,2]
[420081921,1775659843909,-272.324876,0.000144,2]
[420081922,1775659843920,-1068.5,0.00014459,2]
[420081923,1775659843930,-558.91219686,0.00014517,2]
[420081924,1775659843941,-1000.0,0.00014649,7]
[420081925,1775659843952,-1068.5,0.00014693,2]
[420081926,1775659843963,-6453.0,0.00014694,2]
[420081927,1775659843974,-2129.0,0.00014699,2]
[420081928,1775659843985,-208.301986,0.000147,2]